Cogmind - Beta 14 @@@ ROGUE MODE // 2024.08.18 @ 00:36:58 Player: Lillith Result: Destroyed by D-53 Grenadier with Mini Grenade Launcher Performance ------------- Evolutions (0) 0 Regions Visited (2) 400 Robots Destroyed (42) 210 Value Destroyed (894) 894 Prototype IDs (0) 0 Alien Tech Used (0) 0 Bonus (0) 0 TOTAL SCORE: 1504 Bonus ------- None Cogmind --------- Core Integrity 0/250 Matter 300/300 Energy 160/160 System Corruption 0% Temperature Cool (0) Movement Walking (400) Ox4 Location -10/Mines Parts ------- > --- POWER (1) -------- Light Nuclear Core > --- PROPULSION (2) --- Aluminum Leg Aluminum Leg > --- UTILITY (2) ------ Huge Storage Unit > --- WEAPON (2) ------- Heavy Assault Rifle > --- INVENTORY (25) --- Ion Engine Light Nuclear Core Aluminum Leg Aluminum Leg Aluminum Leg Aluminum Leg Compact Wheel Compact Wheel Large Storage Unit High-capacity Matter Pod (200) Improved Terrain Scanner Seismic Detector Heavy Armor Plating Hardened Light Armor Plating Hardened Light Armor Plating Hardened Light Armor Plating Hardened Light Armor Plating Improved Light Armor Plating Hacking Suite Hacking Suite Heavy Assault Rifle Heavy Assault Rifle Mini Grenade Launcher Mini Grenade Launcher Peak State ------------ > --- POWER ------------ Light Nuclear Core > --- PROPULSION ------- Aluminum Leg Aluminum Leg > --- UTILITY ---------- Huge Storage Unit Light Armor Plating > --- WEAPON ----------- Heavy Assault Rifle Heavy Assault Rifle > --- INVENTORY -------- Ion Engine Light Nuclear Core Aluminum Leg Aluminum Leg Aluminum Leg Aluminum Leg Aluminum Leg Compact Wheel Compact Wheel Large Storage Unit Improved Terrain Scanner Seismic Detector Light Armor Plating Light Armor Plating Light Armor Plating Hardened Light Armor Plating Hardened Light Armor Plating Hardened Light Armor Plating Hardened Light Armor Plating Hacking Suite Hacking Suite Heavy Assault Rifle Heavy Assault Rifle Mini Grenade Launcher Mini Grenade Launcher [Rating: 15] Favorites ----------- Power Light Nuclear Core Engine Ion Engine Power Core Light Nuclear Core Propulsion Aluminum Leg Treads Light Treads Leg Aluminum Leg Utility Huge Storage Unit Device Seismic Detector Storage Huge Storage Unit Protection Light Armor Plating Weapon Heavy Assault Rifle Energy Gun Small Laser Ballistic Gun Heavy Assault Rifle Build | -11 -10 -10 ------- Run | Yrd Mat Min Slots Evolved . | . . . Power . | . . . Propulsion . | . . . Utility . | . . . Weapon . | . . . Parts Attached 24 | 7 15 2 Power 4 | 1 2 1 Engine 1 | 1 . . Core 3 | . 2 1 Reactor . | . . . Propulsion 7 | 2 4 1 Treads 2 | 2 . . Leg 5 | . 4 1 Wheel . | . . . Hover . | . . . Flight . | . . . Utility 7 | 2 5 . Device 1 | 1 . . Storage 3 | 1 2 . Processor . | . . . Hackware . | . . . Protection 3 | . 3 . Artifact . | . . . Weapon 6 | 2 4 . Energy Gun 1 | 1 . . Energy Cannon . | . . . Ballistic Gun 5 | 1 4 . Ballistic Cannon . | . . . Launcher . | . . . Special Weapon . | . . . Impact Weapon . | . . . Slashing Weapon . | . . . Piercing Weapon . | . . . Special Melee Weapon . | . . . Unidentified Prototypes . | . . . Parts Lost 5 | . 3 2 Power . | . . . Propulsion 1 | . 1 . Utility 3 | . 2 1 Weapon 1 | . . 1 Highest Loss Streak 2 | . 1 2 To Critical Strikes . | . . . Average Slot Usage (%) 99 | . 99 99 Engine 4 | . 7 . Core 9 | . 6 14 Treads 9 | . 17 . Leg 18 | . 10 28 Device 2 | . 4 . Storage 14 | . 14 14 Protection 11 | . 9 13 Energy Gun 1 | . 2 . Ballistic Gun 26 | . 25 27 Peak Build Rating 15 | 7 14 15 Average Rating 12 | 5 10 14 On Entrance 7 | . 7 14 Naked Turns . | . . . Heaviest Build 94 | 13 94 94 Greatest Support 40 | 40 40 20 Greatest Overweight (x) 4 | . 4 4 Average Overweight (x) 2 | . 1 4 Largest Inventory Capacity 25 | 8 25 25 Average Capacity 22 | 7 21 25 Most Carried 25 | 5 25 25 Average Carried 20 | 3 17 24 Final Capacity 25 | 8 25 25 Final Carried 25 | 5 24 25 Class Distribution -------------------- 100% | Mutant Dominant Class ---------------- Mutant | -10/Materials Mutant | -10/Mines Resources | -11 -10 -10 ----------- Run | Yrd Mat Min Matter Collected 906 | 278 490 138 Remotely . | . . . Salvage Created 1532 | 125 1059 348 Parts 96 | 6 72 18 Haulers Intercepted 2 | . 2 . Recyclers Shooed 4 | . 3 1 Parts Field Recycled . | . . . Retrieved Matter . | . . . Parts Self-Destructed . | . . . Prevented . | . . . Kills | -11 -10 -10 ------- Run | Yrd Mat Min Combat Hostiles Destroyed 26 | . 20 6 Guns 26 | . 20 6 Classes Destroyed 8 | 2 6 . Worker 3 | . 3 . Tunneler 3 | 2 . 1 Hauler 2 | . 2 . Recycler 5 | 1 2 2 Operator 2 | . 2 . Watcher 1 | . 1 . Swarmer 7 | . 5 2 Grunt 19 | . 15 4 Best Kill Streak 4 | 2 4 3 Combat Bots Only 3 | . 3 2 Max Kills in Single Turn 2 | 1 2 1 Gunslinging . | . . . Exploded . | . . . Melee . | . . . Uniques/NPCs Destroyed . | . . . Combat | -11 -10 -10 -------- Run | Yrd Mat Min Hostile Shots Fired 161 | . 133 28 Missed 47 | . 38 9 Damage Taken 1404 | . 1023 381 Core 258 | . 190 68 Absorbed by Shields . | . . . Core Remaining (%) 100 | 100 . . Volleys Fired 126 | 8 100 18 Largest 2 | 2 2 2 Hottest 60 | 60 60 46 Shots Fired 250 | 16 198 36 Gun 250 | 16 198 36 Cannon . | . . . Launcher . | . . . Special . | . . . Kinetic 226 | 8 182 36 Thermal 24 | 8 16 . Explosive . | . . . Electromagnetic . | . . . Robot Hit Streak 15 | 5 15 8 Robot Miss Streak 4 | 2 4 2 Penetration Max . | . . . Secondary Targets 3 | . 1 2 Max Gunslinging Chain 1 | . 1 1 Shots Hit Robots 162 | 8 130 24 Core Hits 71 | 5 53 13 Critical Kills . | . . . Critical Parts Destroyed 1 | . 1 . Critical Strikes 1 | . 1 . Destroy 1 | . 1 . Melee Attacks . | . . . Impact . | . . . Slashing . | . . . Piercing . | . . . Sneak Attacks . | . . . Combat Hostiles . | . . . Follow-up Attacks . | . . . Damage Inflicted 1940 | 80 1479 381 Guns 1939 | 80 1478 381 Cannons . | . . . Explosions . | . . . Melee . | . . . Ramming 1 | . 1 . Kinetic 1793 | 23 1389 381 Thermal 146 | 57 89 . Explosive . | . . . Electromagnetic . | . . . Impact . | . . . Slashing . | . . . Piercing . | . . . Highest Corruption . | . . . Average Corruption . | . . . Corruption Purged . | . . . Corruption Blocked . | . . . Overload Shots . | . . . Overflow Damage . | . . . Projectiles . | . . . Explosions . | . . . Melee . | . . . Knockbacks . | . . . Impact . | . . . Kinetic . | . . . Secondary . | . . . Self-Inflicted Damage 64 | . 64 . Shots 1 | . 1 . Rammed . | . . . Targets Rammed 1 | . 1 . Kicked 1 | . 1 . Crushed . | . . . Highest Temperature 52 | 20 52 36 Average Temperature 16 | 13 15 23 Received Heat Transfer 492 | . 396 96 Siege Activations . | . . . Robots Corrupted . | . . . Combat Hostiles . | . . . Parts Fried . | . . . Impact Corruptions . | . . . Robots Melted . | . . . Combat Hostiles . | . . . Parts Melted . | . . . Heat Transferred 325 | 125 200 . Parts Sabotaged . | . . . Parts Stolen . | . . . Parts Stripped . | . . . Power Chain Reactions . | . . . Alert | -11 -10 -10 ------- Run | Yrd Mat Min Peak Influence 265 | 15 265 187 Initial 36 | . 9 36 Average 87 | 5 120 50 Maximum Alert Level 1 | . 1 . Low Security (%) 94 | 100 90 100 Level 1 5 | . 9 . Level 2 . | . . . Level 3 . | . . . Level 4 . | . . . Level 5 . | . . . High Security . | . . . Max Security . | . . . Squads Dispatched 6 | . 6 . Investigation 4 | . 4 . Extermination . | . . . Reinforcement 2 | . 2 . Assault . | . . . Garrison . | . . . Intercept . | . . . Searches Triggered . | . . . Construction Impeded . | . . . Haulers Reinforced . | . . . Active Scanning Responses . | . . . Cargo Convoy Interrupts . | . . . Stealth | -11 -10 -10 --------- Run | Yrd Mat Min Distress Signals 5 | . 5 . Communications Jammed . | . . . Distress Signals . | . . . Times Spotted 45 | . 36 9 Peak Tracking Total 4 | . 4 3 Tactical Retreats 4 | . 3 1 Traps | -11 -10 -10 ------- Run | Yrd Mat Min Traps Triggered 3 | . 2 1 Indirectly . | . . . Trap Hack Attempts . | . . . Triggered . | . . . Disarmed . | . . . Reprogrammed . | . . . Reused . | . . . Traps Extracted . | . . . Installed . | . . . Triggered . | . . . Machines | -11 -10 -10 ---------- Run | Yrd Mat Min Machines Disabled 2 | . 1 1 Max in Single Turn 1 | . 1 1 Machines Repaired . | . . . Machines Dismantled . | . . . Machines Sabotaged . | . . . Overloaded Fab Kills . | . . . Hacking | -11 -10 -10 --------- Run | Yrd Mat Min Machines Accessed 6 | . 4 2 Terminals 5 | . 4 1 Fabricators . | . . . Repair Stations . | . . . Recycling Units . | . . . Scanalyzers . | . . . Garrison Access . | . . . Total Hacks 18 | . 12 6 Successful 10 | . 7 3 Failed 7 | . 4 3 Catastrophic . | . . . Database Lockouts 1 | . 1 . Manual 8 | . 7 1 Terminals 17 | . 12 5 Fabricators . | . . . Repair Stations . | . . . Recycling Units . | . . . Scanalyzers . | . . . Garrison Access . | . . . Terminal Hacks 10 | . 7 3 Robot Analysis 4 | . 3 1 Open Door 1 | . . 1 Unreport Threat 1 | . 1 . Locate Traps 1 | . 1 . Zone Layout 3 | . 2 1 Fabricator Hacks . | . . . Repair Station Hacks . | . . . Recycling Unit Hacks . | . . . Scanalyzer . | . . . Garrison Access Hacks . | . . . Unauthorized Hacks . | . . . Terminals . | . . . Fabricators . | . . . Repair Stations . | . . . Recycling Units . | . . . Scanalyzers . | . . . Garrison Access . | . . . Data Cores Recovered . | . . . Used . | . . . Hacking Detections 4 | . 3 1 Full Trace Events 3 | . 2 1 Feedback Events . | . . . Feedback Blocked . | . . . Robot Schematics Acquired . | . . . Robots Built . | . . . Authchips . | . . . Time . | . . . Total Robot Build Rating . | . . . Part Schematics Acquired . | . . . Parts Built . | . . . Authchips . | . . . Time . | . . . Total Part Build Rating . | . . . Parts Repaired . | . . . Time . | . . . Parts Recycled . | . . . Recycled Matter . | . . . Retrieved Matter . | . . . Retrieved Components . | . . . Parts Scanalyzed . | . . . Part Schematics Acquired . | . . . Parts Damaged . | . . . Bothacking | -11 -10 -10 ------------ Run | Yrd Mat Min Used RIF Installer . | . . . Robots Hacked . | . . . Non-combat . | . . . Combat . | . . . Robot Hacks Applied . | . . . Relay Couplers Released . | . . . Fabnet Peak Effective % . | . . . Robots Rewired . | . . . Allies Hacked . | . . . Hacks Repelled . | . . . Allies | -11 -10 -10 -------- Run | Yrd Mat Min Total Allies . | . . . Largest Group . | . . . Highest-Rated Group . | . . . Highest-Rated Ally . | . . . Total Orders . | . . . Ally Attacks . | . . . Total Damage . | . . . Kills . | . . . Allies Corrupted . | . . . Allies Melted . | . . . Intel | -11 -10 -10 ------- Run | Yrd Mat Min Robot Analysis Total 4 | . 3 1 Derelict Logs Recovered 1 | . . 1 Drone Launches . | . . . Drone Recoveries . | . . . Exploration | -11 -10 -10 ------------- Run | Yrd Mat Min Turns Passed 3309 | 129 1839 1341 Spaces Moved 866 | 67 494 305 Core 14 | 14 . . Treads 387 | 53 334 . Legs 465 | . 160 305 Wheels . | . . . Hover . | . . . Flight . | . . . Fastest Speed 50 | 50 160 400 Average Speed 317 | 137 290 400 Slowest Speed 400 | 160 400 400 Overloaded Moves . | . . . Propulsion Burnouts . | . . . Robots Hopped . | . . . Cave-ins Triggered . | . . . Exploration Rate (%) 41 | 4 75 46 Regions Visited 2 Branch Regions 1 Pre-discovered Areas 1 | . . 1 Known Exits Taken . | . . . Unknown Exits Taken 2 | 1 1 . Scrap Searched . | . . . Spaces Dug . | . . . Terrain Destroyed 22 | . 22 . Melee . | . . . Projectile . | . . . AOE 22 | . 22 . Terrain Rammed . | . . . Walls Destroyed . | . . . Machines Disabled . | . . . Actions | -11 -10 -10 --------- Run | Yrd Mat Min Total 1200 | 86 718 396 Wait 135 | . 76 59 Move 864 | 66 493 305 Hop . | . . . Pick Up 31 | 5 21 5 Fast Attach 8 | 7 1 . Attach 6 | . 6 . Detach 4 | . 4 . Swap 10 | . 8 2 Drop 15 | . 8 7 Fire 126 | 8 100 18 Melee . | . . . Ram . | . . . Kick 1 | . 1 . Crush . | . . . Escape Stasis . | . . . Rewire . | . . . Trap . | . . . Miscellaneous . | . . . Route ------- -11/Scrapyard -10/Materials (discovered 3 exits: [*Mat x2] / *Min) -10/Mines (discovered 2 exits: [*Mat] / [*Exi]) History --------- Turn | Location | Event 7 | -11/Scrapyard | Discovered new exit (range 16) 130 | -11/Scrapyard | Entered Materials 302 | -10/Materials | Build established: Mutant 756 | -10/Materials | Discovered new exit (range 16) 1015 | -10/Materials | Core integrity fell below 50% 1345 | -10/Materials | Discovered new exit (range 15) 1645 | -10/Materials | Central database locked down 1882 | -10/Materials | Discovered new exit (range 19) 1969 | -10/Materials | Entered Mines 1980 | -10/Mines | Core integrity fell below 20% 2061 | -10/Mines | Discovered new exit (range 15) 2517 | -10/Mines | Met a Derelict who couldn't figure out how to use a Trap Extractor 2980 | -10/Mines | Learned location of Storage (-8) 3219 | -10/Mines | Deemed a non-threat by the Exiles lab entrance 3223 | -10/Mines | Discovered new exit (range 5) 3280 | -10/Mines | Assembled infested the area 3310 | -10/Mines | Destroyed by D-53 Grenadier with Mini Grenade Launcher Last Messages --------------- 02980_ A derelict emerges from the shadows: "Are any of them following you? I'm here trying to lose some heat after our second raid on Storage failed. Whatever you do stay away from that place, they've tightened security following our previous successful raids." World map updated: -8/Storage. 02982_ 54-IPO(g): "We scattered so the Unaware couldn't effectively use their advantage in numbers, and I suggest you do the same." 02982_ 54-IPO(g) slips back into the shadows. 03219_ "No threat detected, you may enter." 03223_ EXIT=FOUND 03280_ ALERT: Infestation in the mines, dispatching Demolisher response squad. 03303_ C-30 ARC bursts open, deploying its payload. 03303_ D-53 Grenadier unfolds itself. 03304_ Hvy. Assault Rifle destroyed. 03304_ Lgt. Armor Plating destroyed. Map ----- +----------------------------------------------------+ | ##### "" %#####=#?## #????????????????????????? | | "" %% ### #????????????????????????? | | ##### """ #####=## #?????????????????????????? | | ????# #??##*! ##??????????????????????????? | | ????# #??# ##???????????????????????????? | | ????#######??# #????????????????????????????? | | ####?????????# ##??????? ??????????????????? | | ##???????## ##???????# #?????????????????? | | #??????## ##??????## #?????????????????? | | """ ######?# ##????## ##????????????????? | | """ #?# #????# #????????????????? | | """ ### #?# ###?? #????????????????? | | ##?# #?## ??? ##???????????????? | | #####??# #??## ##??? %#???????????????? | | ???????# #???###### #????# u####????????????? | | ???????# #????????# #????# ?????????????? | | ???????# #????????# #????# ??????????????? | | ???????# #???????## #????? ##??????????????? | | ???????# #??????## ##????# d ####???????????? | | ???????# ######## #???## ###?????????? | | ???????# #### #d ##????????? | | ???????# # #????????? | | ???????####### #### #### #???????? | | ?????????????# #??## ## ##??????????????? | | ############## #???## ####???????????????? | | #????# @ #???????????????????? | | ############## ##???## #???????????????????? | | #???????##??## ##???# ???????????????????? | | #???????# ### #???# #???????????????????? | | ##?????## # ##??## # #???????????????????? | | ##????#"![!#X ##??# ###?##??#########????????? | | #????#"* ! ##?< ????????# #????????? | | ##????#" !!! # ####????????# #????????? | | #?????#"!!^# # ############ """#????????? | | #?????##""## !%* """#????????? | | ##??????###### *% """#????????? | | #????????????# ############ #????????? | | ?????????????## ##??????????# #????????? | | ??????????????#######???????????#########????????? | | ?????????????????????????????????????????????????? | | | | | | | | | | | | | | | | | | | | | +----------------------------------------------------+ Best States ------------- Heat Dissipation 25 Energy Generation 14 Energy Capacity 250 Matter Stores 300 Matter Capacity 300 Sight Range 16 Terrain Scan Density 10 Armor Coverage 150 Evasion (%) 40 Recoil Reduction 2 Item Schematics ----------------- None Robot Schematics ------------------ None Fabricated ------------ Nothing Alien Tech Used ----------------- None Achievements -------------- None Challenges ------------ None Game ------ Seed LinkedSwarmRedistributor Manual? 0 Play Time 00:12:29 Cumulative 32.7 hours Start 2024.08.18 @ 00:25:01 End 2024.08.18 @ 00:36:58 Sessions 1 Manual Loads 0 Difficulty Rogue Special Mode None Game No. 56 Rogue 56 Adventurer 0 Explorer 0 Win Type - Total 0 Types 0/0/0/0/0/0/0/0/0 Lore% 35 Gallery% 29 Achievement% 28 Wizard Run 0 Options --------- Layout 2 ASCII 0 Keyboard 1 Movement Arrows Keybinds 0 Fullscreen 2 Font 32/SmallcapsGlow Map View 50x44 Zoom Use 0% Tactical HUD 1 Map Filters NONE Filters NONE Steam 1 RUN: 9d482964-cd37-4e2c-9865-75a5b322d797